fUSD/lending_fUSD_20250202
["ID","MTS","AMOUNT","RATE_DAILY","PERIOD"]
[351354292,1738533047639,-500.0,0.00010958,2]
[351354293,1738533047648,-612.74894247,0.00010958,2]
[351354294,1738533047658,-500.0,0.00010958,2]
[351354295,1738533047669,-500.0,0.00010958,2]
[351354296,1738533047679,-500.0,0.00010958,2]
[351354297,1738533047688,-3228.34,0.00010958,2]
[351354298,1738533047698,-500.0,0.00010958,2]
[351354299,1738533047707,-500.0,0.00010958,2]
[351354300,1738533047717,-559.42,0.00010958,2]
[351354301,1738533047726,-500.0,0.00010958,2]
[351354302,1738533047735,-1849.04,0.00010958,2]
[351354303,1738533047744,-500.0,0.00010958,2]
[351354304,1738533047754,-519.09,0.00010958,2]
[351354305,1738533047763,-500.0,0.00010958,2]
[351354306,1738533047773,-500.0,0.00010958,2]
[351354307,1738533047783,-500.0,0.00010958,2]
[351354308,1738533047792,-500.0,0.00010958,2]
[351354309,1738533047801,-500.0,0.00010958,2]
[351354310,1738533047811,-500.0,0.00010958,2]
[351354311,1738533047821,-954.8,0.00010958,2]
[351354312,1738533047831,-500.0,0.00010958,2]
[351354313,1738533047841,-500.0,0.00010958,2]
[351354314,1738533047851,-500.0,0.00010958,2]
[351354315,1738533047861,-500.0,0.00010958,2]
[351354316,1738533047871,-500.0,0.00010958,2]
[351354317,1738533047880,-500.0,0.00010958,2]
[351354318,1738533047890,-500.0,0.00010958,2]
[351354319,1738533047900,-1041.74,0.00010958,2]
[351354320,1738533047910,-503.06275872,0.00010958,2]
[351354321,1738533047922,-500.0,0.00010958,2]
[351354322,1738533047932,-500.0,0.00010958,2]
[351354323,1738533047941,-1722.94,0.00010958,2]
[351354324,1738533047953,-834.08,0.00010958,2]
[351354325,1738533047962,-500.0,0.00010958,2]
[351354326,1738533047971,-2521.45,0.00010958,2]
[351354327,1738533047981,-500.0,0.00010958,2]
[351354328,1738533047992,-500.0,0.00010958,2]
[351354329,1738533048002,-950.2,0.00010958,2]
[351354330,1738533048012,-500.0,0.00010958,2]
[351354331,1738533048022,-1356.92,0.00010958,2]
[351354332,1738533048032,-500.0,0.00010958,2]
[351354333,1738533048043,-500.0,0.00010958,2]
[351354334,1738533048054,-500.0,0.00010958,2]
[351354335,1738533048064,-500.0,0.00010958,2]
[351354336,1738533048075,-616.09,0.00010958,2]
[351354337,1738533048087,-500.0,0.00010958,2]
[351354338,1738533048097,-500.0,0.00010958,2]
[351354339,1738533048108,-2771.4,0.00010958,2]
[351354340,1738533048118,-380.26494835,0.00010958,2]
[351354341,1738533048128,-500.0,0.00010958,2]
[351354342,1738533048138,-500.0,0.00010958,2]
[351354343,1738533048148,-500.0,0.00010958,2]
[351354344,1738533048158,-500.0,0.00010958,2]
[351354345,1738533048172,-2539.49,0.00010958,2]
[351354346,1738533048182,-500.0,0.00010958,2]
[351354347,1738533048192,-500.0,0.00010958,2]
[351354348,1738533048203,-2403.04,0.00010958,2]
[351354349,1738533048213,-1028.93,0.00010958,2]
[351354350,1738533048223,-500.0,0.00010958,2]
[351354351,1738533048233,-500.0,0.00010958,2]
[351354352,1738533048243,-500.0,0.00010958,2]
[351354353,1738533048253,-500.0,0.00010958,2]
[351354354,1738533048262,-500.0,0.00010958,2]
[351354355,1738533048272,-500.0,0.00010958,2]
[351354356,1738533048282,-500.0,0.00010958,2]
[351354357,1738533048292,-500.0,0.00010958,2]
[351354358,1738533048302,-927.48,0.00010958,2]
[351354359,1738533048311,-823.19,0.00010958,2]
[351354360,1738533048320,-516.73572811,0.00010958,2]
[351354361,1738533048330,-500.0,0.00010958,2]
[351354362,1738533048339,-2937.95,0.00010958,2]
[351354363,1738533048348,-893.53,0.00010958,2]
[351354364,1738533048357,-500.0,0.00010958,2]
[351354365,1738533048367,-500.0,0.00010958,2]
[351354366,1738533048375,-500.0,0.00010958,2]
[351354367,1738533048384,-634.39,0.00010958,2]
[351354368,1738533048394,-1172.72,0.00010958,2]
[351354369,1738533048404,-932.42,0.00010958,2]
[351354370,1738533048415,-513.74,0.00010958,2]
[351354371,1738533048428,-481.29166569,0.00010958,2]
[351354372,1738533048441,-1576.16,0.00010958,2]
[351354373,1738533048451,-500.0,0.00010958,2]
[351354374,1738533048461,-500.0,0.00010958,2]
[351354375,1738533048471,-500.0,0.00010958,2]
[351354376,1738533048481,-500.0,0.00010958,2]
[351354377,1738533048490,-500.0,0.00010958,2]
[351354378,1738533048500,-500.0,0.00010958,2]
[351354379,1738533048510,-500.0,0.00010958,2]
[351354380,1738533048520,-2143.71,0.00010958,2]
[351354381,1738533048530,-604.06789634,0.00010958,2]
[351354382,1738533048539,-500.0,0.00010958,2]
[351354383,1738533048548,-500.0,0.00010958,2]
[351354384,1738533048558,-500.0,0.00010958,2]
[351354385,1738533048568,-500.0,0.00010958,2]
[351354386,1738533048577,-500.0,0.00010958,2]
[351354387,1738533048586,-566.7,0.00010958,2]
[351354388,1738533048595,-3394.84,0.00010958,2]
[351354389,1738533048605,-500.0,0.00010958,2]
[351354390,1738533048615,-500.0,0.00010958,2]
[351354391,1738533048625,-500.0,0.00010958,2]
[351354392,1738533048636,-2487.23,0.00010958,2]
[351354393,1738533048645,-500.0,0.00010958,2]
[351354394,1738533048655,-500.0,0.00010958,2]
[351354395,1738533048664,-500.0,0.00010958,2]
[351354396,1738533048678,-500.0,0.00010958,2]
[351354397,1738533048688,-776.44,0.00010958,2]
[351354398,1738533048698,-500.0,0.00010958,2]
[351354399,1738533048707,-2429.08,0.00010958,2]
[351354400,1738533048716,-500.0,0.00010958,2]
[351354401,1738533048726,-500.0,0.00010958,2]
[351354402,1738533048736,-1584.47,0.00010958,2]
[351354403,1738533048746,-500.0,0.00010958,2]
[351354404,1738533048756,-500.0,0.00010958,2]
[351354405,1738533048766,-550.42151731,0.00010958,2]
[351354406,1738533048776,-520.25143709,0.00010958,2]
[351354407,1738533048786,-3289.59,0.00010958,2]
[351354408,1738533048797,-500.0,0.00010958,2]
[351354409,1738533048807,-500.0,0.00010958,2]
[351354410,1738533048817,-520.45117914,0.00010958,2]
[351354411,1738533048828,-544.02,0.00010958,2]
[351354412,1738533048838,-500.0,0.00010958,2]
[351354413,1738533048847,-500.0,0.00010958,2]
[351354414,1738533048857,-500.0,0.00010958,2]
[351354415,1738533048866,-957.32,0.00010958,2]
[351354416,1738533048876,-500.0,0.00010958,2]
[351354417,1738533048887,-500.0,0.00010958,2]
[351354418,1738533048897,-1812.68,0.00010958,2]
[351354419,1738533048908,-500.0,0.00010958,2]
[351354420,1738533048920,-500.0,0.00010958,2]
[351354421,1738533048932,-2431.02,0.00010958,2]
[351354422,1738533048943,-500.0,0.00010958,2]
[351354423,1738533048957,-500.0,0.00010958,2]
[351354424,1738533048967,-500.0,0.00010958,2]
[351354425,1738533048979,-500.0,0.00010958,2]
[351354426,1738533048990,-500.0,0.00010958,2]
[351354427,1738533049001,-604.49,0.00010958,2]
[351354428,1738533049011,-500.0,0.00010958,2]
[351354429,1738533049022,-500.0,0.00010958,2]
[351354430,1738533049032,-1263.3,0.00010958,2]
[351354431,1738533049043,-500.0,0.00010958,2]
[351354432,1738533049053,-500.0,0.00010958,2]
[351354433,1738533049063,-782.13,0.00010958,2]
[351354434,1738533049072,-500.0,0.00010958,2]
[351354435,1738533049082,-500.0,0.00010958,2]
[351354436,1738533049093,-1270.86,0.00010958,2]
[351354437,1738533049104,-500.0,0.00010958,2]
[351354438,1738533049114,-2885.68,0.00010958,2]
[351354439,1738533049124,-500.0,0.00010958,2]
[351354440,1738533049134,-500.0,0.00010958,2]
[351354441,1738533049143,-500.0,0.00010958,2]
[351354442,1738533049153,-500.0,0.00010958,2]
[351354443,1738533049163,-500.0,0.00010958,2]
[351354444,1738533049176,-500.0,0.00010958,2]
[351354445,1738533049186,-1111.32,0.00010958,2]
[351354446,1738533049196,-505.86375064,0.00010958,2]
[351354447,1738533049206,-500.0,0.00010958,2]
[351354448,1738533049216,-500.0,0.00010958,2]
[351354449,1738533049226,-500.0,0.00010958,2]
[351354450,1738533049236,-500.0,0.00010958,2]
[351354451,1738533049245,-500.0,0.00010958,2]
[351354452,1738533049256,-500.0,0.00010958,2]
[351354453,1738533049265,-2194.52,0.00010958,2]
[351354454,1738533049276,-2243.98,0.00010958,2]
[351354455,1738533049286,-500.0,0.00010958,2]
[351354456,1738533049297,-519.96972504,0.00010958,2]
[351354457,1738533049308,-1543.36,0.00010958,2]
[351354458,1738533049318,-500.0,0.00010958,2]
[351354459,1738533049328,-500.0,0.00010958,2]
[351354460,1738533049338,-500.0,0.00010958,2]
[351354461,1738533049348,-500.0,0.00010958,2]
[351354462,1738533049358,-500.0,0.00010958,2]
[351354463,1738533049368,-500.0,0.00010958,2]
[351354464,1738533049378,-500.0,0.00010958,2]
[351354465,1738533049389,-500.0,0.00010958,2]
[351354466,1738533049398,-2165.51,0.00010958,2]
[351354467,1738533049409,-1279.7,0.00010958,2]
[351354468,1738533049425,-500.0,0.00010958,2]
[351354469,1738533049435,-500.0,0.00010958,2]
[351354470,1738533049446,-585.33,0.00010958,2]
[351354471,1738533049457,-500.0,0.00010958,2]
[351354472,1738533049468,-500.0,0.00010958,2]
[351354473,1738533049478,-900.99,0.00010958,2]
[351354474,1738533049488,-500.0,0.00010958,2]
[351354475,1738533049500,-500.0,0.00010958,2]
[351354476,1738533049511,-500.0,0.00010958,2]
[351354477,1738533049521,-500.0,0.00010958,2]
[351354478,1738533049532,-500.0,0.00010958,2]
[351354479,1738533049542,-1379.29,0.00010958,2]
[351354480,1738533049552,-500.0,0.00010958,2]
[351354481,1738533049563,-500.0,0.00010958,2]
[351354482,1738533049573,-500.0,0.00010958,2]
[351354483,1738533049583,-552.15,0.00010958,2]
[351354484,1738533049594,-2766.91,0.00010958,2]
[351354485,1738533049604,-762.79,0.00010958,2]
[351354486,1738533049615,-500.0,0.00010958,2]
[351354487,1738533049626,-500.0,0.00010958,2]
[351354488,1738533049637,-806.52,0.00010958,2]
[351354489,1738533049647,-983.63,0.00010958,2]
[351354490,1738533049657,-500.0,0.00010958,2]
[351354491,1738533049668,-948.81,0.00010958,2]
[351354492,1738533049682,-500.0,0.00010958,2]
[351354493,1738533049692,-1777.4,0.00010958,2]
[351354494,1738533049702,-500.0,0.00010958,2]
[351354495,1738533049713,-754.28,0.00010958,2]
[351354496,1738533049723,-500.0,0.00010958,2]
[351354497,1738533049733,-500.0,0.00010958,2]
[351354498,1738533049743,-1457.3,0.00010958,2]
[351354499,1738533049753,-500.0,0.00010958,2]
[351354500,1738533049763,-500.0,0.00010958,2]
[351354501,1738533049774,-516.40131654,0.00010958,2]
[351354502,1738533049785,-500.0,0.00010958,2]
[351354503,1738533049795,-500.0,0.00010958,2]
[351354504,1738533049806,-500.0,0.00010958,2]
[351354505,1738533049816,-500.0,0.00010958,2]
[351354506,1738533049826,-500.0,0.00010958,2]
[351354507,1738533049836,-500.0,0.00010958,2]
[351354508,1738533049845,-1288.49,0.00010958,2]
[351354509,1738533049855,-1903.94,0.00010958,2]
[351354510,1738533049864,-1571.0,0.00010958,2]
[351354511,1738533049874,-502.94884594,0.00010958,2]
[351354512,1738533049884,-1769.28,0.00010958,2]
[351354513,1738533049894,-1461.02,0.00010958,2]
[351354514,1738533049904,-500.0,0.00010958,2]
[351354515,1738533049914,-500.0,0.00010958,2]
[351354516,1738533049928,-500.0,0.00010958,2]
[351354517,1738533049941,-1093.07,0.00010958,2]
[351354518,1738533049952,-604.67,0.00010958,2]
[351354519,1738533049962,-586.81431432,0.00010958,2]
[351354520,1738533049972,-500.0,0.00010958,2]
[351354521,1738533049984,-500.0,0.00010958,2]
[351354522,1738533049995,-1324.46,0.00010958,2]
[351354523,1738533050005,-615.99,0.00010958,2]
[351354524,1738533050015,-500.0,0.00010958,2]
[351354525,1738533050025,-3164.26,0.00010958,2]
[351354526,1738533050035,-500.0,0.00010958,2]
[351354527,1738533050045,-778.05,0.00010958,2]
[351354528,1738533050055,-1805.83,0.00010958,2]
[351354529,1738533050066,-500.0,0.00010958,2]
[351354530,1738533050076,-500.0,0.00010958,2]
[351354531,1738533050087,-580.41,0.00010958,2]
[351354532,1738533050097,-500.0,0.00010958,2]
[351354533,1738533050108,-500.0,0.00010958,2]
[351354534,1738533050118,-500.0,0.00010958,2]
[351354535,1738533050128,-500.0,0.00010958,2]
[351354536,1738533050139,-500.0,0.00010958,2]
[351354537,1738533050149,-1356.17,0.00010958,2]
[351354538,1738533050160,-500.0,0.00010958,2]
[351354539,1738533050172,-1068.32,0.00010958,2]
[351354540,1738533050182,-500.0,0.00010958,2]
[351354541,1738533050192,-507.85,0.00010958,2]
[351354542,1738533050202,-500.0,0.00010958,2]
[351354543,1738533050212,-503.70152521,0.00010958,2]
[351354544,1738533050222,-500.0,0.00010958,2]
[351354545,1738533050233,-500.0,0.00010958,2]
[351354546,1738533050243,-1285.52,0.00010958,2]
[351354547,1738533050253,-500.0,0.00010958,2]
[351354548,1738533050262,-500.0,0.00010958,2]
[351354549,1738533050272,-748.79,0.00010958,2]
[351354550,1738533050282,-1169.35,0.00010958,2]
[351354551,1738533050292,-500.0,0.00010958,2]
[351354552,1738533050302,-500.0,0.00010958,2]
[351354553,1738533050311,-685.99,0.00010958,2]
[351354554,1738533050321,-907.81,0.00010958,2]
[351354555,1738533050330,-541.66,0.00010958,2]
[351354556,1738533050340,-500.0,0.00010958,2]
[351354557,1738533050350,-563.01,0.00010958,2]
[351354558,1738533050360,-500.0,0.00010958,2]
[351354559,1738533050369,-2231.99,0.00010958,2]
[351354560,1738533050379,-500.0,0.00010958,2]
[351354561,1738533050389,-500.0,0.00010958,2]
[351354562,1738533050398,-2009.64,0.00010958,2]
[351354563,1738533050407,-500.0,0.00010958,2]
[351354564,1738533050417,-500.0,0.00010958,2]
[351354565,1738533050429,-500.0,0.00010958,2]
[351354566,1738533050442,-500.0,0.00010958,2]
[351354567,1738533050452,-332.61045372,0.00010958,2]
[351354568,1738533050462,-500.0,0.00010958,2]
[351354569,1738533050471,-500.0,0.00010958,2]
[351354570,1738533050483,-500.0,0.00010958,2]
[351354571,1738533050493,-1692.2,0.00010958,2]
[351354572,1738533050504,-500.0,0.00010958,2]
[351354573,1738533050513,-500.0,0.00010958,2]
[351354574,1738533050524,-1154.95,0.00010958,2]
[351354575,1738533050536,-2563.16,0.00010958,2]
[351354576,1738533050545,-500.0,0.00010958,2]
[351354577,1738533050555,-500.0,0.00010958,2]
[351354578,1738533050564,-500.0,0.00010958,2]
[351354579,1738533050575,-1803.38,0.00010958,2]
[351354580,1738533050585,-2687.15,0.00010958,2]
[351354581,1738533050595,-500.0,0.00010958,2]
[351354582,1738533050604,-1946.12,0.00010958,2]
[351354583,1738533050615,-500.0,0.00010958,2]
[351354584,1738533050625,-500.0,0.00010958,2]
[351354585,1738533050635,-500.0,0.00010958,2]
[351354586,1738533050645,-500.0,0.00010958,2]
[351354587,1738533050655,-500.0,0.00010958,2]
[351354588,1738533050664,-500.0,0.00010958,2]
[351354589,1738533050675,-500.0,0.00010958,2]
[351354590,1738533050686,-1484.95,0.00010958,2]
[351354591,1738533050695,-500.0,0.00010958,2]
[351354592,1738533050705,-500.0,0.00010958,2]
[351354593,1738533050715,-500.0,0.00010958,2]
[351354594,1738533050725,-500.0,0.00010958,2]
[351354595,1738533050735,-1188.62,0.00010958,2]
[351354596,1738533050746,-500.0,0.00010958,2]
[351354597,1738533050756,-504.55378777,0.00010958,2]
[351354598,1738533050766,-1724.72,0.00010958,2]
[351354599,1738533050775,-500.0,0.00010958,2]
[351354600,1738533050785,-500.0,0.00010958,2]
[351354601,1738533050795,-500.0,0.00010958,2]
[351354602,1738533050804,-500.0,0.00010958,2]
[351354603,1738533050813,-500.0,0.00010958,2]
[351354604,1738533050822,-649.19,0.00010958,2]
[351354605,1738533050832,-682.62,0.00010958,2]
[351354606,1738533050842,-500.0,0.00010958,2]
[351354607,1738533050852,-724.79,0.00010958,2]
[351354608,1738533050862,-989.47,0.00010958,2]
[351354609,1738533050871,-500.0,0.00010958,2]
[351354610,1738533050881,-500.0,0.00010958,2]
[351354611,1738533050890,-1581.78,0.00010958,2]
[351354612,1738533050899,-500.0,0.00010958,2]
[351354613,1738533050908,-3367.91,0.00010958,2]
[351354614,1738533050917,-500.0,0.00010958,2]
[351354615,1738533050928,-549.36,0.00010958,2]
[351354616,1738533050938,-2879.45,0.00010958,2]
[351354617,1738533050948,-500.0,0.00010958,2]
[351354618,1738533050958,-500.0,0.00010958,2]
[351354619,1738533050968,-615.46,0.00010958,2]
[351354620,1738533050979,-3086.32,0.00010958,2]
[351354621,1738533050990,-500.0,0.00010958,2]
[351354622,1738533051000,-500.0,0.00010958,2]
[351354623,1738533051010,-613.12180638,0.00010958,2]
[351354624,1738533051020,-500.0,0.00010958,2]
[351354625,1738533051031,-740.1,0.00010958,2]
[351354626,1738533051042,-500.0,0.00010958,2]
[351354627,1738533051052,-767.45,0.00010958,2]
[351354628,1738533051062,-500.0,0.00010958,2]
[351354629,1738533051072,-500.0,0.00010958,2]
[351354630,1738533051081,-2555.18,0.00010958,2]
[351354631,1738533051092,-500.0,0.00010958,2]
[351354632,1738533051101,-500.0,0.00010958,2]
[351354633,1738533051111,-2475.12,0.00010958,2]
[351354634,1738533051121,-500.0,0.00010958,2]
[351354635,1738533051130,-501.61877481,0.00010958,2]
[351354636,1738533051140,-500.0,0.00010958,2]
[351354637,1738533051363,-1666.15,0.00010958,2]
[351354638,1738533051373,-974.88,0.00010958,2]
[351354639,1738533051383,-2792.3,0.00010958,2]
[351354640,1738533051393,-500.0,0.00010958,2]
[351354641,1738533051403,-500.0,0.00010958,2]
[351354642,1738533051412,-500.0,0.00010958,2]
[351354643,1738533051429,-500.0,0.00010958,2]
[351354644,1738533051439,-500.0,0.00010958,2]
[351354645,1738533051448,-1141.07,0.00010958,2]
[351354646,1738533051459,-500.0,0.00010958,2]
[351354647,1738533051469,-500.0,0.00010958,2]
[351354648,1738533051479,-511.01,0.00010958,2]
[351354649,1738533051489,-709.08,0.00010958,2]
[351354650,1738533051500,-1370.6,0.00010958,2]
[351354651,1738533051509,-500.0,0.00010958,2]
[351354652,1738533051519,-1069.37,0.00010958,2]
[351354653,1738533051529,-1829.07,0.00010958,2]
[351354654,1738533051539,-500.0,0.00010958,2]
[351354655,1738533051549,-500.0,0.00010958,2]
[351354656,1738533051558,-500.0,0.00010958,2]
[351354657,1738533051567,-825.31,0.00010958,2]
[351354658,1738533051576,-500.0,0.00010958,2]
[351354659,1738533051587,-2685.18,0.00010958,2]
[351354660,1738533051596,-500.0,0.00010958,2]
[351354661,1738533051606,-500.0,0.00010958,2]
[351354662,1738533051616,-500.0,0.00010958,2]
[351354663,1738533051625,-916.32,0.00010958,2]
[351354664,1738533051635,-1967.36,0.00010958,2]
[351354665,1738533051645,-500.0,0.00010958,2]
[351354666,1738533051655,-500.0,0.00010958,2]
[351354667,1738533051664,-500.0,0.00010958,2]
[351354668,1738533051677,-500.0,0.00010958,2]
[351354669,1738533051686,-500.0,0.00010958,2]
[351354670,1738533051696,-500.0,0.00010958,2]
[351354671,1738533051706,-500.0,0.00010958,2]
[351354672,1738533051716,-500.0,0.00010958,2]
[351354673,1738533051726,-500.0,0.00010958,2]
[351354674,1738533051736,-500.0,0.00010958,2]
[351354675,1738533051746,-500.0,0.00010958,2]
[351354676,1738533051757,-500.0,0.00010958,2]
[351354677,1738533051767,-500.0,0.00010958,2]
[351354678,1738533051777,-1526.65,0.00010958,2]
[351354679,1738533051787,-500.0,0.00010958,2]
[351354680,1738533051797,-500.0,0.00010958,2]
[351354681,1738533051807,-500.0,0.00010958,2]
[351354682,1738533051816,-500.0,0.00010958,2]
[351354683,1738533051826,-500.0,0.00010958,2]
[351354684,1738533051835,-1227.85,0.00010958,2]
[351354685,1738533051845,-500.0,0.00010958,2]
[351354686,1738533051855,-2266.39,0.00010958,2]
[351354687,1738533051865,-500.0,0.00010958,2]
[351354688,1738533051874,-758.13,0.00010958,2]
[351354689,1738533051884,-1145.51,0.00010958,2]
[351354690,1738533051894,-500.0,0.00010958,2]
[351354691,1738533051903,-500.0,0.00010958,2]
[351354692,1738533051913,-500.0,0.00010958,2]
[351354693,1738533051926,-2936.81,0.00010958,2]
[351354694,1738533051936,-500.0,0.00010958,2]
[351354695,1738533051946,-500.0,0.00010958,2]
[351354696,1738533051955,-500.0,0.00010958,2]
[351354697,1738533051964,-2830.51,0.00010958,2]
[351354698,1738533051974,-2449.31,0.00010958,2]
[351354699,1738533051983,-330.24472876,0.00010958,2]
[351354700,1738533051993,-500.0,0.00010958,2]
[351354701,1738533052003,-500.0,0.00010958,2]
[351354702,1738533052013,-500.0,0.00010958,2]
[351354703,1738533052022,-622.44,0.00010958,2]
[351354704,1738533052032,-500.0,0.00010958,2]
[351354705,1738533052042,-500.0,0.00010958,2]
[351354706,1738533052051,-250.8692987,0.00010958,2]
[351354707,1738533052061,-240.44567375,0.00010958,2]
[351354708,1738533052070,-1219.19,0.00010958,2]
[351354709,1738533052081,-500.0,0.00010958,2]
[351354710,1738533052090,-500.0,0.00010958,2]
[351354711,1738533052101,-500.0,0.00010958,2]
[351354712,1738533052110,-500.0,0.00010958,2]
[351354713,1738533052120,-616.66,0.00010958,2]
[351354714,1738533052130,-519.18942784,0.00010958,2]
[351354715,1738533052139,-1756.49,0.00010958,2]
[351354716,1738533052149,-500.0,0.00010958,2]
[351354717,1738533052159,-500.0,0.00010958,2]
[351354718,1738533052168,-500.0,0.00010958,2]
[351354719,1738533052178,-500.0,0.00010958,2]
[351354720,1738533052187,-544.71,0.00010958,2]
[351354721,1738533052197,-500.0,0.00010958,2]
[351354722,1738533052207,-500.0,0.00010958,2]
[351354723,1738533052217,-1695.48,0.00010958,2]
[351354724,1738533052226,-500.0,0.00010958,2]
[351354725,1738533052236,-500.0,0.00010958,2]
[351354726,1738533052246,-500.0,0.00010958,2]
[351354727,1738533052256,-500.0,0.00010958,2]
[351354728,1738533052266,-500.0,0.00010958,2]
[351354729,1738533052276,-3911.86,0.00010958,2]
[351354730,1738533052285,-515.11,0.00010958,2]
[351354731,1738533052295,-1976.82,0.00010958,2]
[351354732,1738533052305,-1143.75,0.00010958,2]
[351354733,1738533052315,-500.0,0.00010958,2]
[351354734,1738533052325,-500.0,0.00010958,2]
[351354735,1738533052335,-1953.66,0.00010958,2]
[351354736,1738533052345,-500.0,0.00010958,2]
[351354737,1738533052355,-500.0,0.00010958,2]
[351354738,1738533052365,-500.0,0.00010958,2]
[351354739,1738533052374,-500.0,0.00010958,2]
[351354740,1738533052383,-1992.33,0.00010958,2]
[351354741,1738533052392,-500.0,0.00010958,2]
[351354742,1738533052402,-500.0,0.00010958,2]
[351354743,1738533052412,-500.0,0.00010958,2]
[351354744,1738533052423,-1855.21,0.00010958,2]
[351354745,1738533052435,-500.0,0.00010958,2]
[351354746,1738533052445,-500.0,0.00010958,2]
[351354747,1738533052454,-734.94,0.00010958,2]
[351354748,1738533052465,-500.0,0.00010958,2]
[351354749,1738533052475,-500.0,0.00010958,2]
[351354750,1738533052486,-500.0,0.00010958,2]
[351354751,1738533052495,-500.0,0.00010958,2]
[351354752,1738533052505,-2717.24,0.00010958,2]
[351354753,1738533052517,-996.29,0.00010958,2]
[351354754,1738533052527,-500.0,0.00010958,2]
[351354755,1738533052536,-500.0,0.00010958,2]
[351354756,1738533052545,-500.0,0.00010958,2]
[351354757,1738533052555,-500.0,0.00010958,2]
[351354758,1738533052565,-500.0,0.00010958,2]
[351354759,1738533052575,-1327.84,0.00010958,2]
[351354760,1738533052584,-500.0,0.00010958,2]
[351354761,1738533052594,-500.0,0.00010958,2]
[351354762,1738533052604,-500.0,0.00010958,2]
[351354763,1738533052613,-500.0,0.00010958,2]
[351354764,1738533052623,-2082.42,0.00010958,2]
[351354765,1738533052632,-500.0,0.00010958,2]
[351354766,1738533052642,-500.0,0.00010958,2]
[351354767,1738533052651,-500.0,0.00010958,2]
[351354768,1738533052660,-500.0,0.00010958,2]
[351354769,1738533052672,-6128.5,0.00010958,2]
[351354770,1738533052681,-500.0,0.00010958,2]
[351354771,1738533052691,-500.0,0.00010958,2]
[351354772,1738533052699,-584.66,0.00010958,2]
[351354773,1738533052709,-772.92,0.00010958,2]
[351354774,1738533052719,-500.0,0.00010958,2]
[351354775,1738533052729,-500.0,0.00010958,2]
[351354776,1738533052739,-1957.83,0.00010958,2]
[351354777,1738533052749,-500.0,0.00010958,2]
[351354778,1738533052759,-943.56,0.00010958,2]
[351354779,1738533052768,-500.0,0.00010958,2]
[351354780,1738533052778,-500.0,0.00010958,2]
[351354781,1738533052787,-3272.62,0.00010958,2]
[351354782,1738533052797,-500.0,0.00010958,2]
[351354783,1738533052807,-500.0,0.00010958,2]
[351354784,1738533052816,-1544.14,0.00010958,2]
[351354785,1738533052826,-737.29,0.00010958,2]
[351354786,1738533052835,-753.23,0.00010958,2]
[351354787,1738533052845,-4716.61,0.00010958,2]
[351354788,1738533052855,-188.43302777,0.00010958,2]
[351354789,1738533052865,-1866.88,0.00010958,2]
[351354790,1738533052875,-4290.75,0.00010958,2]
[351354791,1738533052885,-500.0,0.00010958,2]